bitfinex/quotes_SOLUSD_20250822
["timestamp","ask_amount","ask_price","bid_price","bid_amount"]
[1755821114434,42.92,181.12,181.1,26.0]
[1755821114827,42.92,181.12,181.11,0.68]
[1755821115629,132.40000001,181.13,181.11,0.68]
[1755821116166,42.94,181.12,181.1,26.0]
[1755821116858,42.94,181.12,181.11,0.66]
[1755821117024,42.94,181.12,181.11,26.66]
[1755821117226,42.94,181.12,181.11,43.265319]
[1755821118070,42.94,181.12,181.11,42.605319]
[1755821118439,42.94,181.12,181.11,43.265319]
[1755821119267,42.94,181.12,181.11,42.605319]
[1755821119858,42.94,181.12,181.11,43.265319]
[1755821122557,42.92,181.12,181.11,43.265319]
[1755821123896,42.92,181.12,181.11,42.605319]
[1755821125364,42.92,181.12,181.11,43.265319]
[1755821126070,42.92,181.12,181.11,42.605319]
[1755821132469,47.32657616,181.12,181.11,42.605319]
[1755821133070,47.32657616,181.12,181.09,0.03]
[1755821133264,3.71657616,181.11,181.09,0.03]
[1755821133584,3.71657616,181.11,181.1,16.606238]
[1755821133897,46.55657616,181.11,181.1,16.606238]
[1755821134187,47.24717487,181.11,181.09,0.03]
[1755821134375,4.40717487,181.1,181.09,0.03]
[1755821134559,4.40717487,181.1,181.09,26.03]
[1755821134764,18.00276888,181.1,181.09,26.03]
[1755821135593,17.31276888,181.1,181.09,0.03]
[1755821136094,17.31276888,181.1,181.09,26.03]
[1755821136479,3.71717487,181.1,181.09,26.69]
[1755821136875,3.71717487,181.1,181.09,26.03]
[1755821137191,42.84,181.11,181.1,26.0]
[1755821137392,42.84,181.11,181.1,26.66]
[1755821138176,46.55718103,181.11,181.1,26.66]
[1755821138585,42.84,181.11,181.1,26.66]
[1755821139995,132.40000001,181.13,181.1,26.66]
[1755821140297,42.84,181.12,181.11,0.66]
[1755821140601,42.84,181.12,181.1,26.0]
[1755821141097,42.84,181.12,181.11,0.66]
[1755821141277,42.84,181.12,181.11,26.66]
[1755821143274,1e-08,181.13,181.11,26.66]
[1755821143474,1e-08,181.13,181.12,0.66]
[1755821143672,0.06,181.15,181.12,0.94432314]
[1755821144188,0.06,181.15,181.13,0.66]
[1755821145184,0.06,181.15,181.14,5.80491494]
[1755821145874,0.06,181.15,181.14,6.46491494]
[1755821146993,0.06,181.15,181.14,20.29868094]
[1755821149880,0.06,181.15,181.14,14.77808914]
[1755821150302,0.06,181.15,181.14,20.29868094]
[1755821151490,0.06,181.15,181.14,14.63592757]
[1755821151695,0.06,181.15,181.14,14.493766]
[1755821151880,0.06,181.15,181.14,13.833766]
[1755821152678,0.06,181.15,181.14,20.0243578]
[1755821157386,0.06,181.15,181.14,20.30868094]
[1755821160608,0.06,181.15,181.14,33.90427495]
[1755821160810,0.06,181.15,181.14,20.30868094]
[1755821161191,0.06,181.15,181.14,19.3543578]
[1755821161408,0.06,181.15,181.14,13.833766]
[1755821162213,0.73,181.15,181.14,13.833766]
[1755821162383,0.73,181.15,181.11,0.03]
[1755821162578,0.73,181.15,181.13,0.03]
[1755821163327,0.06,181.15,181.14,26.0]
[1755821164108,0.73,181.15,181.14,26.0]
[1755821164410,0.06,181.15,181.14,26.0]
[1755821165217,0.06,181.15,181.13,5.55086696]
[1755821166396,0.06,181.15,181.13,6.22086696]
[1755821167124,0.06,181.15,181.13,5.55086696]
[1755821167602,0.06,181.15,181.13,6.22086696]
[1755821168594,0.06,181.15,181.14,0.67]
[1755821168831,0.06,181.15,181.14,6.890867]
[1755821170632,0.06,181.15,181.14,12.69578194]
[1755821174918,0.06,181.15,181.14,11.7414588]
[1755821175842,0.06,181.15,181.14,6.220867]
[1755821176022,0.73,181.15,181.14,6.220867]
[1755821177941,0.06,181.15,181.14,6.220867]
[1755821178115,0.75,181.15,181.14,6.220867]
[1755821179027,0.06,181.15,181.14,6.220867]
[1755821179232,0.75,181.15,181.14,32.220867]
[1755821179811,0.06,181.15,181.14,6.220867]
[1755821180057,0.06,181.15,181.14,6.900867]
[1755821180216,0.06,181.15,181.14,12.4214588]
[1755821184341,0.06,181.15,181.14,11.7414588]
[1755821184924,0.06,181.15,181.14,12.4214588]
[1755821186634,0.06,181.15,181.14,12.70578194]
[1755821190162,0.06,181.17,181.15,13.87991715]
[1755821190323,0.06,181.19,181.18,26.28432314]
[1755821190843,0.06,181.19,181.18,32.48369613]
[1755821191566,0.06,181.19,181.18,34.01626913]
[1755821192753,0.06,181.19,181.18,2.49689614]
[1755821193048,0.06,181.19,181.18,8.01626913]
[1755821193660,0.75,181.19,181.18,2.212573]
[1755821194731,0.06,181.19,181.18,2.212573]
[1755821195050,0.75,181.19,181.18,2.212573]
[1755821195254,4.46890768,181.19,181.18,2.212573]
[1755821195433,0.75,181.19,181.18,2.212573]
[1755821195637,4.46890768,181.19,181.13,0.03]
[1755821195855,0.69,181.18,181.13,26.03]
[1755821196036,3.71890768,181.17,181.13,0.03]
[1755821196231,13.59559401,181.16,181.13,0.03]
[1755821196572,46.55956267,181.15,181.13,0.03]
[1755821196731,43.53,181.15,181.13,0.03]
[1755821196930,0.69,181.14,181.13,0.03]
[1755821197343,14.28559401,181.14,181.13,0.03]
[1755821197531,18.0050096,181.14,181.13,0.03]
[1755821197736,27.07048678,181.14,181.13,0.03]
[1755821198333,22.42401819,181.14,181.13,0.03]
[1755821198942,27.07048678,181.14,181.13,0.03]
[1755821199656,18.28933274,181.14,181.13,0.03]
[1755821199969,61.16933274,181.14,181.13,0.03]
[1755821200939,60.8850096,181.14,181.13,0.03]
[1755821203741,65.29343171,181.14,181.13,0.03]
[1755821204071,65.29343171,181.14,181.11,0.03]
[1755821204072,13.87991715,181.13,181.11,0.03]
[1755821204240,17.59933274,181.12,181.11,0.03]
[1755821204447,18.28933274,181.12,181.11,0.03]
[1755821205944,22.41014055,181.12,181.11,0.03]
[1755821206153,27.04973189,181.12,181.11,0.03]
[1755821206372,32.41014055,181.12,181.11,0.03]
[1755821207244,32.40555423,181.12,181.11,0.03]
[1755821207443,37.04514557,181.12,181.11,0.03]
[1755821208388,32.40555423,181.12,181.11,0.03]
[1755821209153,145.93559401,181.09,181.08,0.03]
[1755821209366,60.1950096,181.09,181.08,0.03]
[1755821209564,60.8650096,181.09,181.08,0.03]
[1755821209995,60.1950096,181.09,181.08,0.03]
[1755821210304,60.8650096,181.09,181.08,0.03]
[1755821212577,56.47559401,181.09,181.08,0.03]
[1755821216469,61.12366114,181.09,181.08,0.03]
[1755821216656,71.12366114,181.09,181.08,0.03]
[1755821217375,145.93559401,181.07,181.05,0.2]
[1755821217568,192.81366114,181.07,181.05,0.2]
[1755821217882,197.97627449,181.07,181.05,0.2]
[1755821220584,17.289338,181.07,181.05,0.2]
[1755821220765,60.169338,181.07,181.05,0.2]
[1755821220964,56.47559401,181.07,181.05,0.2]
[1755821221582,57.42991715,181.07,181.05,0.2]
[1755821221782,61.12036951,181.07,181.05,0.2]
[1755821222785,71.12036951,181.07,181.05,0.2]
[1755821222987,71.16036951,181.07,181.05,0.2]
[1755821223185,93.77942651,181.07,181.05,0.2]
[1755821223375,69.5466568,181.06,181.05,0.2]
[1755821223556,69.5466568,181.06,181.01,0.03]
[1755821223557,57.08991715,181.02,181.01,0.03]
[1755821223762,57.08991715,181.02,180.91,0.03]
[1755821223763,49.59559401,180.99,180.91,0.03]
[1755821224000,13.87991715,180.95,180.91,0.03]
[1755821224161,70.59036951,180.95,180.91,0.03]
[1755821224361,60.96036951,180.95,180.91,0.03]
[1755821224597,70.96036951,180.95,180.91,0.03]
[1755821225390,17.57036951,180.95,180.91,0.03]
[1755821225578,60.63036951,180.95,180.92,0.87]
[1755821225780,39.84,180.98,180.94,0.87]
[1755821225979,43.16,180.97,180.94,0.87]
[1755821226177,13.59559401,180.96,180.95,0.67]
[1755821226404,13.59559401,180.96,180.94,0.2]
[1755821226690,13.59559401,180.95,180.94,0.2]
[1755821227072,56.77559401,180.95,180.94,0.2]
[1755821227470,39.84,180.98,180.94,0.87]
[1755821227692,43.22,180.97,180.94,0.87]
[1755821227903,43.22,180.97,180.95,0.67]
[1755821228267,39.84,180.98,180.96,0.67]
[1755821228764,43.26,180.97,180.94,0.2]
[1755821229407,39.84,180.98,180.95,0.67]
[1755821229696,39.84,180.98,180.95,26.67]
[1755821229697,43.26,180.97,180.95,26.67]
[1755821229900,43.26,180.97,180.96,0.67]
[1755821230897,39.84,180.98,180.96,0.67]
[1755821231069,39.84,180.98,180.97,26.0]
[1755821231390,42.56,180.98,180.97,0.67]
[1755821231891,13.87991715,181.08,180.99,26.0]
[1755821232080,13.59559401,181.06,181.0,0.67]
[1755821232289,43.3,181.05,181.0,0.67]
[1755821232479,43.3,181.05,181.01,0.67]
[1755821233069,43.3,181.05,180.94,31.72662522]
[1755821233070,14.26559401,181.04,180.98,0.67]
[1755821233285,13.59559401,181.02,180.98,0.67]
[1755821233482,43.3,181.01,180.98,0.67]
[1755821233693,43.3,181.01,180.99,0.67]
[1755821234771,43.3,181.01,181.0,0.67]
[1755821235162,10.0,181.1,181.0,0.67]
[1755821235470,0.28432314,181.07,181.0,0.67]
[1755821235671,13.59559401,181.05,181.0,0.67]
[1755821235881,13.59559401,181.05,180.96,26.0]
[1755821235882,43.3,181.04,181.01,0.67]
[1755821237389,13.59559401,181.03,180.98,0.69]
[1755821237693,43.28,181.02,180.98,0.69]
[1755821238284,43.28,181.02,180.99,0.69]
[1755821238476,43.28,181.02,181.0,0.69]
[1755821238679,43.28,181.02,181.01,0.69]
[1755821238984,43.28,181.02,180.96,26.0]
[1755821239185,132.4,181.01,180.99,0.69]
[1755821239392,43.28,181.0,180.99,0.69]
[1755821243986,43.24,181.0,180.99,0.69]
[1755821248388,43.18,181.0,180.99,0.69]
[1755821249106,0.06,181.04,180.99,0.69]
[1755821249315,43.18,181.03,180.99,0.69]
[1755821249494,43.18,181.03,181.02,26.0]
[1755821249696,43.18,181.03,181.02,26.69]
[1755821251720,0.06,181.04,181.02,26.69]
[1755821251897,43.18,181.03,181.02,26.0]
[1755821252414,43.18,181.03,181.02,26.69]
[1755821253506,43.18,181.03,181.02,0.69]
[1755821253812,0.06,181.04,181.03,26.0]
[1755821254113,0.06,181.04,181.02,32.21419776]
[1755821254318,0.06,181.04,181.03,0.69]
[1755821257292,0.06,181.04,181.03,6.2139463]
[1755821258323,0.06,181.04,181.03,20.09386345]
[1755821260410,0.06,181.04,181.03,46.09386345]
[1755821260626,0.06,181.04,181.03,20.09386345]
[1755821261131,0.06,181.04,181.03,22.30766045]
[1755821261305,0.06,181.04,181.03,48.30766045]
[1755821261505,0.06,181.04,181.03,22.30766045]
[1755821266829,0.06,181.04,181.03,22.02333731]
[1755821267328,0.06,181.04,181.03,22.30766045]
[1755821267623,0.06,181.04,181.03,48.16549888]
[1755821267821,0.06,181.04,181.03,22.30766045]
[1755821268427,0.06,181.04,181.03,48.30766045]
[1755821268625,0.06,181.04,181.03,22.30766045]
[1755821269012,0.06,181.06,181.05,26.0]
[1755821269213,0.06,181.06,181.04,14.55991715]
[1755821269419,0.06,181.06,181.05,14.55991715]
[1755821270211,0.06,181.06,181.05,31.16156115]
[1755821270629,0.06,181.06,181.05,36.68489724]
[1755821279738,0.06,181.06,181.05,36.00489724]
[1755821280148,0.06,181.06,181.05,22.12498009]
[1755821280325,0.06,181.06,181.05,36.68489724]
[1755821280649,0.06,181.06,181.05,79.76489724]
[1755821281241,0.06,181.07,181.06,13.87991715]
[1755821281455,0.06,181.07,181.06,14.55991715]
[1755821283471,1e-08,181.08,181.06,20.08294818]
[1755821283672,1e-08,181.08,181.07,56.97991715]
[1755821283852,1e-08,181.08,181.07,57.65991715]
[1755821285558,1e-08,181.08,181.07,63.18264316]
[1755821287266,1e-08,181.08,181.07,65.39595016]
[1755821289755,1e-08,181.11,181.1,39.59559401]
[1755821289962,1e-08,181.11,181.1,92.91991715]
[1755821290175,1e-08,181.11,181.1,93.59991715]
[1755821290493,1e-08,181.11,181.1,95.81273415]
[1755821291160,1e-08,181.13,181.11,13.87991715]
[1755821291468,1e-08,181.13,181.12,62.44111856]
[1755821291642,1e-08,181.13,181.12,19.40111856]
[1755821291846,1e-08,181.13,181.12,63.12111856]
[1755821292048,1e-08,181.13,181.12,62.44111856]
[1755821292273,1e-08,181.13,181.12,63.12111856]
[1755821292575,1e-08,181.13,181.12,62.44111856]
[1755821292876,1e-08,181.13,181.12,62.29895699]
[1755821293056,1e-08,181.13,181.12,19.25895699]
[1755821293380,0.67000001,181.13,181.12,62.46111856]
[1755821293675,1e-08,181.13,181.12,62.46111856]
[1755821295072,1e-08,181.13,181.12,63.14111856]
[1755821297361,1e-08,181.13,181.12,65.35393656]
[1755821297766,1e-08,181.13,181.12,75.35393656]
[1755821298776,0.06,181.17,181.16,13.59559401]
[1755821299096,0.06,181.17,181.16,82.91991715]
[1755821299469,0.06,181.17,181.16,88.43989948]
[1755821299807,0.06,181.17,181.16,90.65235048]
[1755821302495,0.06,181.17,181.16,91.35235048]
[1755821303061,1e-08,181.17,181.16,91.35235048]
[1755821304099,1e-08,181.17,181.16,47.61235048]
[1755821304268,1e-08,181.17,181.16,90.61235048]
[1755821305479,0.67000001,181.17,181.16,90.63235048]
[1755821306604,1e-08,181.17,181.16,90.63235048]
[1755821306902,1e-08,181.17,181.16,91.35235048]
[1755821308001,1e-08,181.17,181.16,90.63235048]
[1755821308511,1e-08,181.17,181.16,91.35235048]
[1755821308881,1e-08,181.17,181.16,90.63235048]
[1755821310982,1e-08,181.17,181.16,91.35235048]
[1755821312004,1e-08,181.17,181.16,90.63235048]
[1755821318619,1e-08,181.17,181.16,91.35235048]
[1755821322316,1e-08,181.17,181.16,90.49235048]
[1755821322813,0.67000001,181.17,181.16,90.49235048]
[1755821323029,1e-08,181.17,181.16,90.49235048]
[1755821323190,1e-08,181.17,181.16,47.61235048]
[1755821323715,1e-08,181.17,181.16,90.49235048]
[1755821323918,0.67000001,181.17,181.16,90.49235048]
[1755821324799,1e-08,181.17,181.16,90.49235048]
[1755821324997,1e-08,181.17,181.16,47.61235048]
[1755821327220,1e-08,181.17,181.16,48.30235048]
[1755821328296,1e-08,181.17,181.16,48.33235048]
[1755821332029,1e-08,181.19,181.17,13.87991715]
[1755821332326,1e-08,181.19,181.18,66.73991715]
[1755821332519,1e-08,181.19,181.18,67.42991715]
[1755821332714,1e-08,181.19,181.18,59.64200015]
[1755821333025,1e-08,181.19,181.18,69.64200015]
[1755821333194,1e-08,181.19,181.18,59.64200015]
[1755821333517,1e-08,181.19,181.18,69.64200015]
[1755821333708,1e-08,181.19,181.18,65.16137314]
[1755821337895,1e-08,181.19,181.18,64.47137314]
[1755821338707,1e-08,181.19,181.18,65.16137314]
[1755821340911,0.70000001,181.19,181.18,21.32705]
[1755821341116,0.70000001,181.19,181.18,64.18705]
[1755821341427,1e-08,181.19,181.18,21.61137314]
[1755821345232,1e-08,181.19,181.18,22.30137314]
[1755821345407,1e-08,181.19,181.18,22.33137314]
[1755821346608,0.06,181.23,181.21,13.59559401]
[1755821346810,0.06,181.23,181.22,56.71991715]
[1755821347021,1e-08,181.23,181.22,57.40991715]
[1755821347426,1e-08,181.23,181.22,61.13362715]
[1755821348718,1e-08,181.23,181.22,66.65178187]
[1755821353607,1e-08,181.23,181.22,72.28761676]
[1755821354836,1e-08,181.27,181.26,39.87991715]
[1755821355132,1e-08,181.27,181.26,82.71991715]
[1755821355509,1e-08,181.27,181.26,84.93102215]
[1755821355907,1e-08,181.27,181.26,90.44795914]
[1755821356628,1e-08,181.27,181.26,91.13795914]
[1755821356838,1e-08,181.27,181.26,90.44795914]
[1755821358240,1e-08,181.27,181.26,91.10795914]
[1755821368650,0.06,181.31,181.26,104.90030163]
[1755821368826,0.06,181.31,181.26,184.04030163]
[1755821369022,0.06,181.31,181.3,39.87991715]
[1755821369221,0.06,181.31,181.3,82.69991715]
[1755821369442,0.06,181.31,181.3,83.35991715]
[1755821369764,0.06,181.31,181.3,82.69991715]
[1755821369922,0.76,181.31,181.3,47.60625295]
[1755821370120,0.76,181.31,181.3,90.42625295]
[1755821370954,0.06,181.31,181.3,90.42625295]
[1755821371328,0.76,181.31,181.3,90.42625295]
[1755821372048,0.06,181.31,181.3,91.08625295]
[1755821372527,1e-08,181.32,181.31,13.87991715]
[1755821372850,1e-08,181.32,181.31,24.53991715]
[1755821373051,1e-08,181.32,181.31,30.05533273]
[1755821373545,1e-08,181.32,181.31,36.31499444]
[1755821374347,39.78,181.51,181.31,40.76873291]
[1755821374526,0.7,181.41,181.4,39.87991715]
[1755821375140,0.7,181.41,181.4,26.28432314]
[1755821375340,0.7,181.41,181.4,16.85753514]
[1755821375539,0.7,181.41,181.4,16.573212]
[1755821375844,0.7,181.41,181.4,42.573212]
[1755821376046,0.7,181.41,181.4,16.573212]
[1755821378028,0.7,181.41,181.4,42.573212]
[1755821378256,0.7,181.41,181.4,16.573212]
[1755821378945,0.76,181.41,181.4,16.573212]
[1755821381844,0.76,181.41,181.4,42.573212]
[1755821382044,0.06,181.41,181.4,56.45312915]
[1755821382355,0.06,181.41,181.4,31.11312915]
[1755821382656,0.06,181.41,181.4,35.96580831]
[1755821383634,0.76,181.41,181.4,35.96580831]
[1755821383948,0.76,181.41,181.4,16.573212]
[1755821388029,0.76,181.41,181.4,42.573212]
[1755821388334,0.06,181.41,181.4,42.573212]
[1755821388723,0.06,181.41,181.4,16.573212]
[1755821389360,0.06,181.41,181.4,23.0302143]
[1755821389547,0.73,181.41,181.4,16.85753514]
[1755821389736,0.73,181.41,181.4,22.3702143]
[1755821389935,0.06,181.41,181.4,22.3702143]
[1755821390136,0.73,181.41,181.4,16.573212]
[1755821390633,0.73,181.41,181.4,42.573212]
[1755821390840,0.73,181.41,181.4,16.573212]
[1755821391440,0.06,181.41,181.4,22.3702143]
[1755821391856,0.06,181.41,181.4,23.0302143]
[1755821392835,0.06,181.41,181.4,36.62580831]
[1755821394445,0.06,181.41,181.4,35.96580831]
[1755821395462,0.06,181.41,181.4,36.62580831]
[1755821398870,0.06,181.41,181.4,79.40580831]
[1755821407360,0.06,181.43,181.42,13.59559401]
[1755821407572,0.06,181.43,181.42,56.65991715]
[1755821407769,0.06,181.43,181.42,39.87991715]
[1755821407976,0.06,181.43,181.42,78.74245458]
[1755821408760,0.06,181.43,181.42,79.40245458]
[1755821409883,0.06,181.43,181.42,78.74245458]
[1755821410064,0.06,181.43,181.42,79.40245458]
[1755821410688,0.06,181.43,181.42,78.74245458]
[1755821411191,0.73,181.43,181.42,16.570466]
[1755821411769,0.06,181.43,181.42,22.36686057]
[1755821412063,0.06,181.43,181.42,16.85478914]
[1755821412264,0.06,181.43,181.42,35.96245458]
[1755821412670,0.06,181.43,181.42,36.62245458]
[1755821412866,0.06,181.43,181.42,56.45038315]
[1755821413080,0.73,181.43,181.42,30.45038315]
[1755821413279,0.06,181.43,181.42,30.45038315]
[1755821413487,0.06,181.43,181.42,16.570466]
[1755821413488,0.73,181.43,181.42,16.570466]
[1755821413679,0.73,181.43,181.38,13.59559401]
[1755821413989,0.73,181.43,181.42,4.117587]
[1755821414503,0.73,181.43,181.41,26.0]
[1755821414988,0.06,181.43,181.41,26.0]
[1755821415176,0.73,181.43,181.41,26.0]
[1755821415708,0.06,181.43,181.42,0.28432314]
[1755821415993,0.06,181.43,181.42,14.53991715]
[1755821416194,0.06,181.43,181.42,20.05198858]
[1755821416669,0.06,181.43,181.42,19.39198858]
[1755821417260,0.73,181.43,181.42,0.28432314]
[1755821417465,0.06,181.43,181.42,5.79639457]
[1755821418485,0.06,181.43,181.42,6.50639457]
[1755821421680,0.06,181.43,181.42,49.28639457]
[1755821422493,0.06,181.43,181.42,62.88198858]
[1755821423392,1e-08,181.43,181.42,62.88198858]
[1755821425081,1e-08,181.43,181.42,70.70639458]
[1755821426083,1e-08,181.43,181.42,69.99639458]
[1755821426377,1e-08,181.43,181.42,70.70639458]
[1755821429002,1e-08,181.43,181.42,69.99639458]
[1755821429609,1e-08,181.43,181.42,70.70639458]
[1755821435895,1e-08,181.43,181.42,69.99639458]
[1755821436202,1e-08,181.43,181.42,69.97639458]
[1755821436781,1e-08,181.43,181.42,69.83423301]
[1755821436984,1e-08,181.43,181.42,69.97639458]
[1755821437505,1e-08,181.43,181.42,70.68639458]
[1755821439185,0.02080201,181.47,181.46,39.59559401]
[1755821439381,0.02080201,181.47,181.46,45.24861196]
[1755821442024,0.02080201,181.47,181.46,45.95861196]
[1755821442205,0.02080201,181.47,181.46,45.24861196]
[1755821443926,0.02080201,181.47,181.46,50.8858217]
[1755821445219,0.69080201,181.47,181.46,26.14216157]
[1755821445422,0.69080201,181.47,181.45,5.51114138]
[1755821445423,0.69080201,181.47,181.45,48.27114138]
[1755821445625,0.02080201,181.47,181.46,26.0]
[1755821446214,0.53080201,181.47,181.46,26.0]
[1755821446823,0.53080201,181.47,181.46,29.713787]
[1755821447027,0.53080201,181.47,181.46,35.22464338]
[1755821447609,0.53080201,181.47,181.46,29.713787]
[1755821448004,0.53080201,181.47,181.46,3.713787]
[1755821448203,0.53080201,181.47,181.42,48.27187925]
[1755821448411,0.53080201,181.47,181.45,26.0]
[1755821449009,0.53080201,181.47,181.41,13.3543532]
[1755821449305,0.53080201,181.47,181.44,26.0]
[1755821449728,0.53080201,181.47,181.45,26.0]
[1755821452236,0.53080201,181.47,181.44,7.842683]
[1755821452616,0.68080201,181.47,181.44,13.35400145]
[1755821453143,0.02080201,181.47,181.45,26.0]
[1755821453334,0.02080201,181.47,181.45,26.7]
[1755821453831,0.02080201,181.47,181.46,0.7]
[1755821454024,0.02080201,181.47,181.46,0.98432314]
[1755821454213,0.02080201,181.47,181.46,6.49517952]
[1755821455340,0.02080201,181.47,181.46,5.79517952]
[1755821455709,0.68080201,181.47,181.46,0.28432314]
[1755821456235,0.02080201,181.47,181.46,0.28432314]
[1755821456621,0.02080201,181.47,181.46,5.79517952]
[1755821458636,0.02080201,181.47,181.46,9.50896652]
[1755821458812,0.02080201,181.47,181.46,3.713787]
[1755821459019,0.68080201,181.47,181.46,3.713787]
[1755821460314,0.68080201,181.47,181.42,0.03]
[1755821460642,4.39458934,181.47,181.43,4.642234]
[1755821460847,0.66,181.46,181.43,4.642234]
[1755821461659,0.66,181.45,181.43,4.642234]
[1755821461817,0.68080201,181.47,181.43,4.642234]
[1755821462017,0.66,181.46,181.43,4.642234]
[1755821462742,0.02080201,181.47,181.46,26.0]
[1755821462963,0.68080201,181.47,181.46,26.0]
[1755821464149,0.02080201,181.47,181.46,26.0]
[1755821465729,0.68080201,181.47,181.45,30.642234]
[1755821465928,0.02080201,181.47,181.45,30.642234]
[1755821466129,0.66,181.46,181.45,30.642234]
[1755821467335,0.66,181.46,181.45,26.0]
[1755821467836,0.02080201,181.47,181.46,26.0]
[1755821468054,0.68080201,181.47,181.46,26.0]
[1755821468937,0.68080201,181.47,181.44,7.844965]
[1755821469444,0.66,181.46,181.44,7.844965]
[1755821470050,0.02080201,181.47,181.46,26.0]
[1755821471333,0.02080201,181.47,181.44,14.05628535]
[1755821471533,0.02080201,181.47,181.45,0.7]
[1755821472460,0.02080201,181.47,181.45,5.342234]
[1755821474957,0.02080201,181.47,181.46,0.7]
[1755821475463,0.02080201,181.47,181.46,4.473788]
[1755821477445,0.02080201,181.47,181.46,9.98464438]
[1755821478171,0.02080201,181.47,181.46,35.97464438]
[1755821478475,0.02080201,181.47,181.46,10.25896752]
[1755821479251,0.02080201,181.47,181.46,36.25896752]
[1755821479458,0.02080201,181.47,181.46,10.25896752]
[1755821480260,0.02080201,181.47,181.46,36.25896752]
[1755821480468,0.02080201,181.47,181.46,10.25896752]
[1755821481389,0.02080201,181.47,181.46,36.25896752]
[1755821481555,0.02080201,181.47,181.46,10.25896752]
[1755821485061,0.02080201,181.47,181.46,36.25896752]
[1755821485256,0.02080201,181.47,181.46,10.25896752]
[1755821488764,0.02080201,181.47,181.46,49.85456153]
[1755821488967,0.02080201,181.47,181.46,23.85456153]
[1755821490560,0.02080201,181.47,181.46,49.85456153]
[1755821491182,0.02080201,181.47,181.46,23.85456153]
[1755821494291,0.02080201,181.47,181.46,55.33174867]
[1755821494496,0.02080201,181.47,181.46,29.33174867]
[1755821494696,0.02080201,181.47,181.46,29.36174867]
[1755821494996,0.02080201,181.47,181.46,34.28867069]
[1755821499300,0.7,181.55,181.5,39.59559401]
[1755821499601,42.76,181.56,181.54,36.43514637]
[1755821499905,42.76,181.56,181.54,31.50822435]
[1755821500206,132.4,181.6,181.57,26.0]
[1755821500902,0.7,181.59,181.57,26.0]
[1755821502586,0.7,181.59,181.55,36.43501924]
[1755821503686,0.7,181.58,181.57,4.92692202]
[1755821503998,0.7,181.58,181.56,5.50780634]
[1755821504197,0.7,181.58,181.57,4.92692202]
[1755821504575,0.7,181.58,181.56,26.99604636]
[1755821505507,0.7,181.58,181.57,4.92692202]
[1755821505686,0.7,181.58,181.56,26.99604636]
[1755821506007,0.7,181.58,181.56,21.48824002]
[1755821506803,42.72,181.61,181.59,26.0]
[1755821507007,43.39,181.61,181.59,26.0]
[1755821507310,0.67,181.6,181.59,26.0]
[1755821507902,0.67,181.63,181.61,26.0]
[1755821508114,43.39,181.62,181.6,26.0]
[1755821508300,0.67,181.61,181.6,26.0]
[1755821509005,43.39,181.61,181.6,26.0]
[1755821513230,43.39,181.61,181.58,4.92692202]
[1755821513231,48.31692202,181.61,181.58,26.0]
[1755821513393,47.64692202,181.61,181.58,26.0]
[1755821513595,0.67,181.6,181.58,26.0]
[1755821513904,0.67,181.6,181.5,13.59559401]
[1755821513905,4.92692202,181.59,181.5,13.59559401]
[1755821514254,4.92692202,181.53,181.51,16.564976]
[1755821514422,43.39,181.54,181.51,16.564976]
[1755821514588,132.4,181.61,181.54,26.0]
[1755821514788,4.92692202,181.55,181.54,26.0]
[1755821515017,48.31692202,181.55,181.54,26.0]